bitfinex/quotes_ETHUSD_20220202
["timestamp","ask_amount","ask_price","bid_price","bid_amount"]
[1643831263546,0.00536357,2715.6,2715.4,4.06189]
[1643831263748,1.56125011,2715.5,2715.4,4.06189]
[1643831264057,1.56125011,2715.5,2715.4,2.76189]
[1643831264328,1.56125011,2715.5,2715.1,0.1841]
[1643831265025,1.56125011,2715.5,2714.8,0.17622042]
[1643831265426,1.56643684,2715.4,2714.8,0.17622042]
[1643831265626,1.56125011,2715.3,2714.8,0.17622042]
[1643831265826,1.56125011,2715.3,2714.7,6.49502]
[1643831266027,1.56125011,2715.3,2714.7,5.29482]
[1643831266228,2.34771297,2715.3,2714.7,5.29482]
[1643831266428,1.56125011,2715.2,2714.7,5.29482]
[1643831266635,0.00518706,2715.1,2714.7,6.21567]
[1643831267228,0.00518706,2715.1,2714.8,1.3]
[1643831267629,0.1841,2715.6,2714.8,1.3]
[1643831267829,0.00520852,2715.1,2715.0,0.92077]
[1643831268250,0.00520852,2715.1,2715.0,1.22077]
[1643831268650,0.84192171,2715.5,2715.0,1.22077]
[1643831268851,1.56134424,2715.4,2715.0,1.22077]
[1643831269052,0.00520841,2715.2,2715.0,1.22077]
[1643831269356,0.00520841,2715.2,2715.0,5.03197126]
[1643831269552,0.00520841,2715.2,2715.1,1.74247822]
[1643831269755,0.00520841,2715.2,2715.1,2.92653822]
[1643831269953,0.1841,2716.2,2715.1,6.11853822]
[1643831270152,1.56116106,2716.1,2715.4,0.92057]
[1643831270354,0.02083008,2715.7,2715.6,0.1669989]
[1643831270856,0.02083008,2715.7,2715.6,2.14378882]
[1643831271254,0.1841,2716.1,2715.6,3.14378882]
[1643831271454,0.00488576,2715.8,2715.7,0.92058]
[1643831271707,1.56597573,2715.8,2715.7,0.92058]
[1643831271905,1.56597573,2715.8,2715.7,1.22058]
[1643831272301,1.56108997,2715.8,2715.7,1.22058]
[1643831272500,1.56108997,2716.0,2715.7,1.22058]
[1643831272701,0.00488566,2715.9,2715.7,1.22058]
[1643831272902,1.56108997,2715.8,2715.7,1.22058]
[1643831273800,0.00488566,2715.9,2715.7,1.22058]
[1643831274002,1.56108997,2715.8,2715.7,1.22058]
[1643831274700,1.56108997,2715.8,2715.7,3.92058]
[1643831275103,1.56108997,2715.8,2715.7,4.92058]
[1643831276255,0.00448986,2715.9,2715.7,4.92058]
[1643831276454,0.00448986,2715.9,2715.8,0.92051]
[1643831276655,0.00448986,2715.9,2715.8,1.92051]
[1643831276856,1.56554339,2715.9,2715.8,1.92051]
[1643831277261,1.56105353,2715.9,2715.8,4.05483176]
[1643831277459,0.00448976,2716.0,2715.8,4.05483176]
[1643831277659,0.00448976,2716.0,2715.9,0.92041]
[1643831278259,0.00448976,2716.0,2715.9,7.19647]
[1643831278460,0.69660381,2716.9,2715.9,6.27606]
[1643831278760,0.01800645,2716.5,2716.3,1.84071]
[1643831278959,1.56087353,2716.4,2716.3,1.84071]
[1643831279399,1.56087353,2716.4,2716.3,0.17579321]
[1643831280002,1.56279011,2716.5,2716.3,0.17579321]
[1643831280200,1.56087353,2716.4,2716.3,0.17579321]
[1643831280501,0.00191658,2716.5,2716.3,0.17579321]
[1643831280700,1.56087353,2716.6,2716.3,0.17579321]
[1643831280904,1.56087353,2716.5,2716.3,0.17579321]
[1643831281103,1.56279011,2716.5,2716.1,1.22035]
[1643831281303,1.56279011,2716.5,2716.0,4.68142]
[1643831281704,1.56087353,2716.4,2716.0,4.98142]
[1643831281904,0.93082773,2716.8,2716.1,1.84068]
[1643831282109,1.56083165,2716.7,2716.1,1.84068]
[1643831282303,0.00501159,2716.4,2716.2,0.3]
[1643831282802,0.76697109,2716.8,2716.2,0.3]
[1643831282803,0.71304973,2716.8,2716.2,0.3]
[1643831283054,1.56082586,2716.7,2716.2,0.92036]
[1643831283453,1.56082586,2716.7,2716.1,1.84068]
[1643831283658,1.56082586,2716.7,2715.5,0.18412]
[1643831283659,3.5,2716.6,2715.5,0.18412]
[1643831283855,1.57307324,2716.5,2715.6,0.442]
[1643831284058,1.56082586,2716.4,2715.7,0.184]
[1643831284257,0.864867,2716.2,2715.8,0.442]
[1643831284664,0.01224738,2716.5,2716.0,0.92038]
[1643831284859,1.56085917,2716.4,2716.0,1.36238]
[1643831285059,1.56085917,2716.4,2716.1,0.3]
[1643831285259,0.19466999,2716.8,2716.1,0.3]
[1643831285460,0.19466999,2716.8,2716.0,1.742]
[1643831285461,1.56083251,2716.7,2716.0,1.742]
[1643831285664,1.56083251,2716.7,2716.3,1.59700354]
[1643831285863,0.1839,2717.2,2716.4,0.62612]
[1643831286060,1.5605111,2717.1,2716.4,0.81002]
[1643831286263,1.5605111,2717.0,2716.4,0.6259]
[1643831286462,1.5605111,2716.9,2716.4,0.6259]
[1643831286699,0.1839,2717.4,2716.4,0.9259]
[1643831286700,1.5605111,2716.8,2716.4,0.9259]
[1643831287003,1.5605111,2716.7,2716.4,0.1839]
[1643831287206,0.70459474,2716.6,2716.1,0.1839]
[1643831287399,0.00536869,2716.8,2715.8,5.1251456]
[1643831287400,0.72615073,2716.0,2715.9,0.1839]
[1643831287602,0.1839,2716.7,2715.8,1.4461456]
[1643831287801,1.56087022,2716.6,2715.8,0.4461456]
[1643831288202,0.00536885,2716.5,2715.8,0.1461456]
[1643831288402,0.00536885,2716.5,2715.6,5.1216]
[1643831288403,1.56087022,2716.4,2715.6,5.1216]
[1643831288601,0.00536885,2716.5,2715.6,1.1339]
[1643831288802,0.1839,2716.4,2715.6,1.1339]
[1643831289002,0.88044429,2715.9,2715.6,1.1339]
[1643831289202,0.1839,2716.4,2715.6,0.1339]
[1643831289404,2.20930134,2716.5,2715.6,0.1339]
[1643831289603,0.01209025,2716.2,2715.6,0.1339]
[1643831289807,0.1841,2716.1,2715.6,0.1339]
[1643831290303,0.87079592,2716.0,2715.2,3.9471133]
[1643831290548,3.61528549,2716.3,2715.2,3.9471133]
[1643831290549,0.83888669,2715.4,2715.2,3.9471133]
[1643831290750,3.22673156,2716.2,2715.3,0.00537095]
[1643831290953,0.1841,2716.1,2715.3,0.00537095]
[1643831291355,0.18398,2716.0,2715.3,0.00537095]
[1643831291550,0.1841,2715.9,2714.8,1.3888456]
[1643831291849,0.19649773,2715.9,2715.3,0.00537083]
[1643831292249,0.88104599,2715.5,2715.3,0.00537083]
[1643831292848,0.88104599,2715.5,2714.8,1.0669256]
[1643831293048,0.88104599,2715.5,2715.3,0.00537066]
[1643831294051,0.88104599,2715.5,2714.8,3.1717456]
[1643831294309,0.88104599,2715.5,2715.3,0.00537066]
[1643831295210,0.88104599,2715.5,2714.8,1.6302456]
[1643831295410,0.88104599,2715.5,2715.3,0.00537066]
[1643831296411,0.88104599,2715.5,2714.8,1.6302456]
[1643831296612,0.88104599,2715.5,2715.3,0.00537066]
[1643831297619,0.88104599,2715.5,2714.8,2.3669956]
[1643831297811,0.88104599,2715.5,2715.3,0.00537066]
[1643831298752,0.88104599,2715.5,2714.8,2.3669956]
[1643831298953,0.88104599,2715.5,2715.3,0.00537066]
[1643831299458,5.78830757,2715.4,2715.3,0.00537066]
[1643831299657,3.95,2715.3,2714.5,0.1841]
[1643831299856,0.72804087,2714.9,2714.3,0.1841]
[1643831300055,0.72804087,2714.9,2714.2,0.1841]
[1643831300258,0.88382594,2714.9,2714.2,0.1841]
[1643831301708,0.1841,2715.3,2714.2,0.1841]
[1643831301709,0.1841,2715.3,2714.2,0.4841]
[1643831301910,0.18406,2715.6,2714.5,0.92091]
[1643831301911,0.1841,2715.5,2714.5,0.92091]
[1643831302109,0.1841,2715.5,2714.4,7.5842]
[1643831302310,1.4208,2715.7,2714.5,1.6261]
[1643831302508,0.1841,2715.9,2714.5,2.8574]
[1643831302710,0.93336779,2715.6,2714.8,0.00536434]
[1643831303109,0.93336779,2715.6,2714.8,0.92613434]
[1643831303410,0.93336779,2715.6,2714.8,1.00536434]
[1643831303607,0.93336779,2715.6,2714.8,1.3]
[1643831303808,0.93336779,2715.6,2714.8,1.0]
[1643831304008,0.93336779,2715.6,2715.1,0.00536406]
[1643831304810,0.93336779,2715.6,2714.8,1.22083]
[1643831305009,0.93336779,2715.6,2715.2,0.00536398]
[1643831306054,0.93336779,2715.6,2714.8,1.22083]
[1643831306356,0.93336779,2715.6,2715.2,0.00536402]
[1643831306557,0.18946252,2715.9,2715.2,0.00536402]
[1643831306957,0.00536252,2715.9,2715.2,0.00536402]
[1643831307355,0.1841,2716.0,2714.9,2.02554]
[1643831307557,0.00536264,2715.9,2715.2,0.00536415]
[1643831307758,0.741044,2715.7,2715.2,0.00536415]
[1643831308555,3.56139912,2715.6,2714.9,0.1841]
[1643831308755,1.56139912,2715.5,2715.2,0.00536407]
[1643831308955,1.56139912,2715.4,2715.2,0.00536407]
[1643831309202,1.56139912,2715.3,2715.2,0.00536407]
[1643831309604,1.56139912,2715.3,2714.8,0.1841]
[1643831309605,1.74182879,2715.6,2714.8,1.10495]
[1643831309805,1.56139912,2715.5,2715.1,0.005364]
[1643831310008,0.68822024,2715.2,2715.1,0.005364]
[1643831310808,0.68822024,2715.2,2714.8,0.1841]
[1643831311008,0.68822024,2715.2,2715.0,0.00536411]
[1643831311208,0.18042967,2715.6,2715.0,0.00536411]
[1643831311409,1.56142565,2715.5,2715.0,0.00536411]
[1643831311812,1.56142565,2715.4,2715.0,0.00536411]
[1643831312011,0.1841,2715.8,2714.9,1.45182]
[1643831312214,1.561325,2715.7,2714.9,2.23634253]
[1643831312409,1.03851748,2715.9,2715.1,0.005364]
[1643831312410,1.561325,2715.6,2715.1,0.005364]
[1643831312610,1.561325,2715.5,2715.1,0.005364]
[1643831312810,1.04387987,2715.9,2715.1,0.005364]
[1643831313052,1.56130527,2715.8,2715.1,0.005364]
[1643831313256,1.56130527,2715.8,2715.0,2.02584193]
[1643831313453,1.56130527,2715.8,2715.2,0.00536411]
[1643831314453,1.56130527,2715.8,2715.1,0.92073]
[1643831314654,1.56130527,2715.8,2715.2,0.00536411]
[1643831315760,1.56130527,2715.8,2715.0,1.84152]
[1643831315761,1.56130527,2715.8,2715.0,3.01441629]
[1643831315959,1.56130527,2715.8,2715.2,0.92608411]
[1643831316158,0.1894626,2715.9,2715.2,0.92608411]
[1643831316159,0.0053626,2715.9,2715.3,3.08125833]
[1643831316356,0.0053626,2715.9,2715.4,0.1841]
[1643831316556,0.0053626,2715.9,2715.5,0.531]
[1643831316809,0.1841,2716.6,2715.6,2.19599303]
[1643831317009,0.1841,2716.6,2715.6,2.49599303]
[1643831317010,0.80448586,2716.2,2715.6,2.49599303]
[1643831317208,1.56096725,2716.1,2715.6,3.49599303]
[1643831318109,0.1841,2716.7,2715.8,0.92047]
[1643831318313,0.00535975,2716.0,2715.9,4.17897959]
[1643831318908,0.00535975,2716.0,2715.8,1.92047]
[1643831319111,0.00535975,2716.0,2715.6,3.26502]
[1643831319311,1.56108879,2715.9,2715.6,1.24]
[1643831319510,1.56108879,2715.9,2715.5,0.1841]
[1643831319712,1.5611339,2715.8,2715.5,0.1841]
[1643831319914,0.00535969,2716.0,2715.5,0.1841]
[1643831320109,2.24686869,2715.9,2715.5,0.1841]
[1643831320312,1.5611602,2715.8,2715.5,0.1841]
[1643831320563,1.5611602,2715.8,2715.2,3.29828141]
[1643831320564,1.5611602,2715.8,2715.2,0.1841]
[1643831320762,1.5611602,2715.8,2715.2,0.00536124]
[1643831321563,1.5611602,2715.8,2715.2,0.92608124]
[1643831321764,1.5611602,2715.8,2715.2,0.92072]
[1643831321965,1.5611602,2715.8,2715.3,2.07415078]
[1643831322364,1.5611602,2715.8,2715.5,0.9206]
[1643831322569,1.5611602,2715.8,2715.2,0.00536108]
[1643831322765,1.5611602,2715.8,2715.3,0.16082764]
[1643831323264,1.5611602,2715.7,2715.3,0.16082764]
[1643831323467,1.5611602,2715.6,2715.3,1.08149764]
[1643831323664,0.00535957,2715.9,2715.3,0.92067]
[1643831323865,1.56119693,2715.8,2715.3,0.92067]
[1643831324206,1.56119693,2715.8,2715.4,0.92061]
[1643831324408,0.69660381,2716.4,2715.4,0.92061]
[1643831324409,0.00535965,2715.9,2715.4,0.92061]
[1643831324610,1.56115258,2715.8,2715.4,2.34545454]
[1643831324809,0.00535965,2715.9,2715.5,0.92059]
[1643831325008,0.00535965,2715.9,2715.6,4.25697063]
[1643831325208,0.00535965,2715.9,2715.7,1.84088]
[1643831325407,0.68447507,2716.4,2715.7,3.14088]
[1643831325609,0.68447507,2716.4,2715.7,1.84088]
[1643831325610,0.00490586,2715.9,2715.7,1.84088]
[1643831326207,0.00490586,2715.9,2715.7,2.84088]
[1643831326614,0.68447507,2716.4,2715.6,3.08948]
[1643831326811,0.00448799,2715.9,2715.6,1.2485]
[1643831327011,1.56111848,2715.8,2715.6,1.2485]
[1643831327210,0.00448799,2715.9,2715.5,2.14098]
[1643831327411,0.00448799,2715.9,2715.5,4.06155]
[1643831327611,0.00448799,2715.9,2715.7,0.92055]
[1643831327811,0.1841,2716.5,2715.8,2.02538275]
[1643831328054,1.88330381,2716.7,2715.8,2.02538275]
[1643831328055,0.00448794,2715.9,2715.8,2.02538275]
[1643831328355,0.00448794,2715.9,2715.8,3.94587275]
[1643831328557,0.00344393,2715.9,2715.8,3.94587275]
[1643831328754,0.00344393,2715.9,2715.8,1.92049]
[1643831328958,1.56098361,2716.1,2715.8,4.04889589]
[1643831329158,0.1839,2716.6,2715.9,1.58962996]
[1643831329359,1.56079477,2716.5,2716.3,0.92029]
[1643831329556,0.1839,2716.9,2716.4,8.2451763]
[1643831329755,1.56067107,2716.8,2716.4,8.5451763]
[1643831329957,0.1839,2717.3,2716.5,1.0]
[1643831330157,1.51062551,2717.2,2716.6,2.28831849]
[1643831330357,1.51062551,2717.2,2716.6,4.24029]
[1643831330557,0.76846579,2717.3,2716.6,4.24029]
[1643831330759,0.76846579,2717.3,2716.7,1.0]
[1643831331163,0.76846579,2717.3,2716.7,1.92015]
[1643831331358,0.17248878,2717.0,2716.7,1.92015]
[1643831331559,0.00226489,2717.1,2716.7,1.92015]
[1643831332606,0.76846579,2717.3,2716.7,1.92015]
[1643831332808,0.00535855,2717.0,2716.7,3.91916146]
[1643831333008,0.00535855,2717.0,2716.8,0.531]
[1643831333210,1.51450881,2717.8,2717.0,5.35]
[1643831333411,0.634005,2717.8,2717.0,6.26998]
[1643831333608,0.634005,2717.8,2717.1,2.1991]
[1643831334007,0.634005,2717.8,2717.3,1.63508581]
[1643831334207,0.634005,2717.8,2717.5,1.83956]
[1643831334408,0.634005,2717.8,2717.6,0.831]
[1643831334608,0.634005,2717.8,2717.6,1.75077]
[1643831334806,0.634005,2717.8,2717.6,2.75077]
[1643831335473,0.1839,2718.5,2717.8,4.4]
[1643831335679,0.88051077,2718.4,2717.9,1.45073]
[1643831335873,0.88051077,2718.4,2717.9,2.45073]
[1643831336178,0.1839,2718.8,2717.9,0.78667245]
[1643831336379,0.0022641,2718.3,2718.2,0.91959]
[1643831336577,0.0022641,2718.3,2718.2,5.87018]
[1643831336777,0.0022641,2718.3,2718.2,5.866231]
[1643831336974,0.0022641,2718.3,2718.2,6.03996558]
[1643831337376,0.1879,2718.9,2718.2,7.03996558]
[1643831337577,0.00226208,2718.4,2718.2,7.03996558]
[1643831337776,0.00226208,2718.4,2718.3,4.85]
[1643831337976,0.00226208,2718.4,2718.3,5.381]
[1643831338676,0.798272,2718.9,2718.3,5.381]
[1643831338880,0.00226208,2718.5,2718.3,1.831]
[1643831339079,0.007,2719.4,2718.3,1.831]
[1643831339317,0.69660381,2719.9,2718.8,0.01294149]
[1643831339516,0.1838,2719.9,2718.9,1.6343]
[1643831339718,1.3151588,2720.0,2719.0,0.3]
[1643831340114,0.1838,2720.0,2719.0,2.55]
[1643831340315,0.1837,2720.4,2719.1,4.8749]
[1643831340516,0.1837,2720.4,2719.2,2.0]
[1643831340716,0.1837,2720.4,2719.5,0.01228235]
[1643831341115,0.82097368,2719.8,2719.2,0.14762977]
[1643831341917,0.82097368,2719.8,2718.9,0.7147]
[1643831341918,0.82097368,2719.8,2718.9,0.1837]
[1643831342116,0.1837,2719.7,2718.5,0.1837]
[1643831342320,0.1837,2719.7,2718.5,2.0]
[1643831342517,0.00537362,2719.6,2718.7,0.00142647]
[1643831342717,0.1837,2719.5,2718.7,0.00142647]
[1643831342972,0.81240388,2719.1,2718.7,0.00142647]
[1643831343161,0.9196142,2719.9,2718.7,0.00142647]
[1643831343361,1.91961419,2719.9,2718.4,3.9139]
[1643831343562,0.9196142,2719.9,2718.4,3.9139]
[1643831343861,0.9196142,2719.9,2718.4,4.2139]
[1643831344067,0.9196142,2719.9,2718.9,0.1871722]
[1643831344267,0.9195046,2720.2,2718.9,0.1871722]
[1643831344463,0.54335418,2720.4,2718.9,2.27817632]
[1643831344662,1.48115418,2720.6,2719.0,4.3]
[1643831344862,2.8388286,2720.7,2719.1,2.08556036]
[1643831344863,1.1838,2720.5,2719.1,2.08556036]
[1643831345063,0.1838,2720.5,2719.1,2.08556036]
[1643831345263,0.20099114,2720.3,2718.9,3.40072265]
[1643831345466,0.83178795,2719.8,2719.4,0.16127609]
[1643831345663,0.83178795,2719.8,2718.9,3.21355045]
[1643831346065,0.00537351,2719.7,2719.0,0.00537488]
[1643831346716,0.00537351,2719.7,2719.3,0.14970538]
[1643831346922,0.83178795,2719.8,2719.3,0.14970538]
[1643831347319,0.0053733,2719.7,2719.3,0.14970538]
[1643831347922,0.0053733,2719.7,2719.3,0.68070538]
[1643831348121,0.1837,2720.4,2719.3,0.67676538]
[1643831348322,0.1837,2720.7,2719.4,4.008]
[1643831348520,0.00537342,2719.7,2719.4,4.539]
[1643831349122,0.00537342,2719.7,2719.4,0.1837]
[1643831349320,0.84834419,2720.1,2719.4,0.1837]
[1643831349525,1.19483231,2720.6,2719.4,0.1837]
[1643831349526,0.1837,2720.5,2719.4,0.1837]
[1643831349823,0.00537347,2719.7,2719.4,0.1837]
[1643831350654,0.1837,2720.7,2719.8,0.76487358]
[1643831350655,0.74989919,2720.5,2719.8,0.76487358]
[1643831350853,0.02148849,2720.4,2719.8,0.76487358]
[1643831351054,0.02148849,2720.4,2719.9,1.97476806]
[1643831351256,0.02148849,2720.4,2720.0,2.13725788]
[1643831351653,0.02148849,2720.4,2719.8,0.76487358]
[1643831351855,0.13025433,2720.8,2719.8,6.77557801]
[1643831352057,0.00537281,2720.3,2720.2,0.15702011]
[1643831352953,0.8739852,2720.8,2720.2,0.15702011]
[1643831353156,0.8739852,2720.8,2719.7,0.7147]
[1643831353354,0.00537276,2720.4,2719.7,0.7147]
[1643831354214,0.81740883,2720.3,2720.0,0.14911238]
[1643831354403,0.00537299,2720.2,2720.0,0.14911238]
[1643831355103,0.00537299,2720.2,2719.7,0.1837]
[1643831355504,0.02148873,2720.6,2719.7,0.1837]
[1643831355505,0.13025433,2720.8,2719.7,0.1837]
[1643831355703,0.0053731,2720.1,2719.7,0.1837]
[1643831356103,0.0053731,2720.1,2719.5,1.51358884]
[1643831356303,0.0053731,2720.1,2719.9,0.92887393]
[1643831356705,0.7554205,2720.7,2720.0,0.19798277]
[1643831356906,0.00537305,2720.1,2720.0,0.19798277]
[1643831357110,0.00537305,2720.1,2719.6,0.1837]
[1643831357954,0.7554205,2720.7,2719.8,0.82198673]
[1643831358156,0.00537322,2720.0,2719.6,0.1837]
[1643831358360,0.00537322,2720.0,2719.9,0.15833568]
[1643831358560,0.02148948,2720.4,2719.6,0.1837]
[1643831358561,0.0148627,2720.4,2719.7,4.2]
[1643831358756,0.0148627,2720.4,2719.7,4.5]
[1643831358955,0.9391205,2720.7,2719.8,2.02756091]
[1643831359155,0.13025433,2720.8,2719.9,0.79037425]
[1643831359361,1.00479097,2721.3,2720.0,2.59220437]
[1643831359362,0.05777,2721.2,2720.0,2.59220437]
[1643831359558,0.17883203,2721.1,2720.1,10.65790725]
[1643831359763,0.17883203,2721.1,2720.2,0.531]
[1643831359956,0.00479097,2721.3,2720.3,0.1837]
[1643831360155,0.00479097,2721.3,2720.2,2.7257]
[1643831360357,0.00479097,2721.3,2720.2,1.4257]
[1643831360656,0.83847766,2720.8,2720.2,1.4257]
[1643831360855,0.83847766,2720.8,2720.2,0.1837]
[1643831361258,1.13847766,2720.8,2719.7,0.1837]
[1643831361461,2.20419202,2720.7,2719.7,0.1837]
[1643831361705,2.20419202,2720.7,2720.1,0.0053735]
[1643831361706,0.00537247,2720.6,2720.1,0.0053735]
[1643831361906,0.1837,2720.5,2720.1,0.0053735]
[1643831362106,0.79147841,2720.4,2720.1,0.0053735]
[1643831362705,0.79147841,2720.4,2719.6,0.14621108]
[1643831362905,0.79147841,2720.4,2720.1,0.0053733]
[1643831363804,0.79147841,2720.4,2719.5,3.2699]
[1643831364006,0.70754661,2719.8,2719.5,3.2699]
[1643831364206,0.70754661,2719.8,2719.6,0.17174721]
[1643831364710,2.44934363,2720.5,2719.6,0.17174721]
[1643831364912,0.00537246,2720.5,2719.6,0.17174721]
[1643831365108,1.1837,2720.6,2719.6,0.17174721]
[1643831365309,2.06019306,2720.5,2719.9,0.00537352]
[1643831365558,0.1837,2720.4,2719.9,0.00537352]
[1643831365759,0.70126462,2720.3,2719.9,0.00537352]
[1643831366159,0.70126462,2720.3,2719.6,0.17174721]
[1643831366564,0.70126462,2720.3,2720.0,0.00537347]
[1643831367361,1.00126462,2720.3,2719.2,3.9839]
[1643831367667,2.20573237,2720.2,2720.0,0.00537341]
[1643831367865,2.20573237,2720.2,2718.9,1.1866]
[1643831367866,0.00400864,2719.9,2718.9,1.1866]
[1643831368063,0.17725509,2719.4,2718.5,10.648]
[1643831368263,0.17725509,2719.4,2718.4,2.68682481]
[1643831368264,0.79030097,2718.7,2718.4,2.68682481]
[1643831368466,0.79030097,2718.7,2718.4,2.50312481]
[1643831368962,1.09403511,2718.7,2718.4,2.50312481]
[1643831369205,0.1839,2718.6,2718.4,2.50312481]
[1643831369406,0.18822484,2718.6,2717.6,5.26552238]
[1643831369605,0.72278156,2718.1,2717.6,5.26552238]
[1643831369805,0.72278156,2718.1,2717.6,0.15872238]
[1643831370107,0.18822484,2718.6,2718.0,0.00537578]
[1643831370316,0.00432484,2718.6,2718.4,0.1783287]
[1643831370508,0.18978124,2719.1,2718.4,0.1783287]
[1643831370706,0.1839,2719.1,2718.4,0.1783287]
[1643831370907,0.1839,2719.1,2718.0,0.00537578]
[1643831371106,0.1839,2719.1,2717.6,1.1828]
[1643831371107,0.88533676,2718.3,2717.6,1.1828]
[1643831371306,0.88533676,2718.3,2717.6,0.3]
[1643831371506,0.18886317,2719.0,2717.6,0.3]
[1643831371706,0.00496317,2719.0,2717.5,2.5045]
[1643831371906,0.00496317,2719.0,2718.2,0.1593762]
[1643831372107,0.00496317,2719.0,2717.5,2.5045]
[1643831372307,0.00496317,2719.0,2717.5,1.2045]
[1643831372308,0.18886317,2719.0,2717.5,1.2045]
[1643831372507,0.87573281,2718.2,2717.4,5.1047]
[1643831372815,1.17573281,2718.2,2717.4,0.1839]
[1643831373072,1.17933578,2718.2,2717.4,0.1839]
[1643831373271,1.17573281,2718.2,2717.4,0.1839]
[1643831373476,1.35963281,2718.2,2717.3,0.14505344]
[1643831373669,0.95096197,2717.6,2717.2,0.20519464]
[1643831374870,0.95096197,2717.6,2717.5,0.19406859]
[1643831375072,0.95096197,2717.6,2717.3,0.00537101]
[1643831375770,0.95096197,2717.6,2717.2,0.20519464]
[1643831376171,0.95096197,2717.6,2717.3,0.15701276]
[1643831377103,0.95096197,2717.6,2717.2,0.20519464]
[1643831377308,0.95096197,2717.6,2717.3,0.00537096]
[1643831378208,0.95096197,2717.6,2717.2,0.20519464]
[1643831378404,0.95096197,2717.6,2717.3,0.1932536]
[1643831379006,0.9202053,2718.1,2717.3,0.1932536]
[1643831379210,0.1839,2718.2,2717.4,0.1131944]
[1643831379408,0.1839,2718.4,2717.4,0.1131944]
[1643831379607,0.13025433,2718.5,2717.5,0.1839]
[1643831379807,0.13025433,2718.5,2717.6,0.00537067]
[1643831380208,0.1839,2719.1,2718.4,2.38079843]
[1643831380465,0.1839,2719.1,2718.5,2.0772083]
[1643831380466,1.55976874,2719.0,2718.5,2.0772083]
[1643831380771,1.55976874,2719.0,2718.4,0.18079843]
[1643831380962,1.55976874,2718.9,2718.6,0.00536945]
[1643831381160,0.87060947,2719.6,2718.6,0.00536945]
[1643831381161,1.74366874,2718.8,2718.6,0.00536945]
[1643831381361,1.55976874,2718.7,2718.6,0.00536945]
[1643831381761,4.40733231,2718.7,2718.6,0.00536945]
[1643831381961,4.60436274,2718.7,2717.8,1.138]
[1643831382159,4.60436274,2718.7,2717.7,0.17609165]
[1643831382160,1.55976874,2718.6,2718.5,0.00536957]
[1643831382760,6.45976874,2718.6,2718.5,0.00536957]
[1643831383160,6.45976874,2718.6,2717.5,0.1839]
[1643831383464,1.74366874,2718.5,2718.4,0.00536968]
[1643831383661,4.84366874,2718.5,2718.4,0.00536968]
[1643831384060,4.65976874,2718.5,2718.4,0.00536968]
[1643831384322,6.47172784,2718.5,2717.4,3.2712]
[1643831384517,1.55976874,2718.4,2718.3,0.0053698]
[1643831384715,8.13222639,2718.4,2718.3,0.0053698]
[1643831385517,0.16479745,2717.9,2717.4,3.0873]
[1643831385715,2.42245765,2718.4,2718.2,0.00536992]
[1643831385915,3.81010316,2718.3,2718.2,0.00536992]
[1643831386313,4.81010316,2718.3,2718.2,0.00536992]
[1643831386714,5.73023366,2718.3,2717.3,3.7118]
[1643831386915,5.73023366,2718.3,2717.2,5.53589464]
[1643831386916,2.56010316,2718.2,2718.1,0.00537003]
[1643831387115,2.86010316,2718.2,2718.1,0.00537003]
[1643831387815,3.00836408,2718.2,2717.3,2.08772198]
[1643831388055,0.95350829,2717.9,2717.3,0.1839]
[1643831388260,1.25350829,2717.9,2717.3,0.1839]
[1643831388855,0.95350829,2717.9,2717.3,0.1839]
[1643831389256,0.95350829,2717.9,2717.5,0.00537078]
[1643831389257,1.25350829,2717.9,2717.5,0.00537078]
[1643831390356,1.25350829,2717.9,2717.3,0.1839]
[1643831390556,1.25350829,2717.9,2717.6,0.00537067]
[1643831391261,0.3,2717.9,2717.6,0.00537067]
[1643831391458,0.3,2718.1,2717.3,0.1839]
[1643831391708,0.3,2718.1,2717.6,0.00537061]
[1643831392810,0.3,2718.1,2717.7,0.00537049]
[1643831393409,0.86318034,2718.0,2717.7,0.00537049]
[1643831393815,0.86318034,2718.0,2717.3,0.1839]
[1643831394211,0.3,2718.1,2717.7,0.00537049]
[1643831394611,1.3,2718.4,2717.7,0.00537049]
[1643831394812,0.3,2718.4,2717.7,0.00537049]
[1643831395011,1.41061176,2718.5,2717.3,0.1839]
[1643831395211,1.56006607,2718.4,2717.3,2.24867858]
[1643831395466,0.83323704,2718.0,2717.9,0.00537026]
[1643831395866,1.11061176,2718.5,2717.9,0.00537026]
[1643831396372,1.11061176,2718.5,2717.3,8.03893836]
[1643831396568,1.11061176,2718.5,2718.1,0.00537009]
[1643831396569,0.19058916,2718.5,2718.1,0.00537009]
[1643831396970,0.85190758,2718.4,2718.1,0.00537009]
[1643831397572,0.85190758,2718.4,2717.3,8.45213276]
[1643831397772,0.85190758,2718.4,2718.1,0.00537003]
[1643831398674,0.85190758,2718.4,2717.7,0.1839]
[1643831398878,0.85190758,2718.4,2718.1,0.00537003]
[1643831399820,0.85190758,2718.4,2717.6,0.01226804]
[1643831400221,0.85190758,2718.4,2718.1,0.00537003]
[1643831400420,0.9199475,2718.7,2718.1,0.00537003]
[1643831400629,0.1839,2719.0,2718.1,0.00537003]
[1643831400821,0.1839,2719.0,2718.1,2.44557521]
[1643831401019,0.1839,2719.5,2718.2,0.6259]
[1643831401221,0.00400864,2719.9,2718.3,2.02701078]
[1643831401222,0.1837,2719.7,2718.3,2.02701078]
[1643831401427,1.55949771,2719.6,2718.9,0.9332381]
[1643831401621,0.1837,2719.6,2718.9,1.7515381]
[1643831401819,0.84123573,2719.7,2718.9,1.7515381]
[1643831402017,1.55940129,2719.6,2718.9,1.7515381]
[1643831402420,0.00400864,2719.9,2718.9,1.7515381]
[1643831402619,0.00400864,2719.9,2718.9,2.1935381]
[1643831402824,0.18770864,2719.9,2719.0,0.18540321]
[1643831403061,1.55933608,2719.8,2719.0,0.18540321]
[1643831403666,0.8518147,2719.7,2719.3,0.00537514]
[1643831404462,0.85061976,2719.7,2719.3,0.00537514]
[1643831404663,0.85061976,2719.7,2719.2,0.1837]
[1643831404863,0.85061976,2719.7,2719.4,0.00537502]
[1643831405464,0.00400864,2719.9,2719.4,0.18937502]
[1643831405667,0.0053731,2720.3,2719.5,6.9051944]
[1643831405866,0.1837,2721.0,2719.7,0.01227804]
[1643831406069,1.55890715,2720.9,2719.8,0.442]
[1643831406264,0.00224924,2720.3,2719.8,0.742]
[1643831406716,0.00224924,2720.3,2719.9,0.1837]
[1643831406911,0.00224924,2720.3,2720.0,0.442]
[1643831407109,0.90325474,2720.6,2720.0,0.442]
[1643831407311,0.00224961,2720.3,2720.0,0.742]
[1643831407712,0.00224961,2720.3,2720.0,0.442]